fUSD/lending_fUSD_20260530
["ID","MTS","AMOUNT","RATE_DAILY","PERIOD"]
[423440928,1780125050000,-956.83876524,7.47e-05,2]
[423440920,1780125050000,-956.83876524,7.47e-05,2]
[423440919,1780125050000,-837.82380473,7.47e-05,2]
[423440921,1780125050000,-956.83876524,7.47e-05,2]
[423440922,1780125050000,-956.83876524,7.47e-05,2]
[423440923,1780125050000,-956.83876524,7.47e-05,2]
[423440924,1780125050000,-956.83876524,7.47e-05,2]
[423440926,1780125050000,-956.83876524,7.47e-05,2]
[423440904,1780125050000,-956.83876524,7.47e-05,2]
[423440927,1780125050000,-956.83876524,7.47e-05,2]
[423440930,1780125050000,-956.83876524,7.47e-05,2]
[423440929,1780125050000,-956.83876524,7.47e-05,2]
[423440918,1780125050000,-119.01496051,7.47e-05,2]
[423440902,1780125050000,-966.50380326,7.47e-05,2]
[423440899,1780125050000,-966.50380326,7.47e-05,2]
[423440903,1780125050000,-956.83876524,7.47e-05,2]
[423440878,1780125050000,-966.50380326,7.47e-05,2]
[423440877,1780125050000,-966.50380326,7.47e-05,2]
[423440880,1780125050000,-966.50380326,7.47e-05,2]
[423440879,1780125050000,-966.50380326,7.47e-05,2]
[423440881,1780125050000,-966.50380326,7.47e-05,2]
[423440882,1780125050000,-966.50380326,7.47e-05,2]
[423440883,1780125050000,-966.50380326,7.47e-05,2]
[423440884,1780125050000,-966.50380326,7.47e-05,2]
[423440885,1780125050000,-966.50380326,7.47e-05,2]
[423440890,1780125050000,-966.50380326,7.47e-05,2]
[423440889,1780125050000,-966.50380326,7.47e-05,2]
[423440888,1780125050000,-966.50380326,7.47e-05,2]
[423440887,1780125050000,-839.95151572,7.47e-05,2]
[423440886,1780125050000,-126.55228754,7.47e-05,2]
[423440892,1780125050000,-966.50380326,7.47e-05,2]
[423440891,1780125050000,-966.50380326,7.47e-05,2]
[423440893,1780125050000,-966.50380326,7.47e-05,2]
[423440894,1780125050000,-966.50380326,7.47e-05,2]
[423440896,1780125050000,-966.50380326,7.47e-05,2]
[423440932,1780125050000,-500.0,7.47e-05,2]
[423440901,1780125050000,-966.50380326,7.47e-05,2]
[423440895,1780125050000,-966.50380326,7.47e-05,2]
[423440898,1780125050000,-966.50380326,7.47e-05,2]
[423440900,1780125050000,-966.50380326,7.47e-05,2]
[423440897,1780125050000,-966.50380326,7.47e-05,2]
[423440905,1780125050000,-956.83876524,7.47e-05,2]
[423440933,1780125050000,-500.0,7.47e-05,2]
[423440925,1780125050000,-956.83876524,7.47e-05,2]
[423440935,1780125050000,-956.83876526,7.47e-05,2]
[423440965,1780125050000,-169.77133318,7.814e-05,2]
[423440964,1780125050000,-500.0,7.814e-05,2]
[423440970,1780125050000,-1337.0,7.82e-05,2]
[423440967,1780125050000,-457.29162774,7.814e-05,2]
[423440968,1780125050000,-1270.0,7.815e-05,2]
[423440966,1780125050000,-522.0513453,7.814e-05,2]
[423440969,1780125050000,-7847.0,7.815e-05,2]
[423440971,1780125050000,-773.0,7.83e-05,2]
[423440973,1780125050000,-431.0,7.837e-05,2]
[423440974,1780125050000,-1961.0,7.846e-05,2]
[423440931,1780125050000,-956.83876524,7.47e-05,2]
[423440976,1780125050000,-253.0,7.928e-05,2]
[423440980,1780125050000,-193.0,7.97e-05,2]
[423440979,1780125050000,-11767.43191964,7.945e-05,2]
[423440977,1780125050000,-1091.97121341,7.933e-05,2]
[423440978,1780125050000,-150.0,7.944e-05,2]
[423440981,1780125050000,-193.0,7.973e-05,2]
[423440975,1780125050000,-253.0,7.853e-05,2]
[423440982,1780125050000,-209.12966642,7.975e-05,2]
[423440983,1780125050000,-253.0,8.003e-05,2]
[423440984,1780125050000,-253.0,8.077e-05,2]
[423440985,1780125050000,-253.0,8.152e-05,2]
[423440987,1780125050000,-7287.68584,8.178e-05,2]
[423440986,1780125050000,-219.17,8.175e-05,2]
[423440988,1780125050000,-1680.0,8.216e-05,2]
[423440963,1780125050000,-500.0,7.814e-05,2]
[423440961,1780125050000,-500.0,7.814e-05,2]
[423440972,1780125050000,-792.0,7.835e-05,2]
[423440959,1780125050000,-500.0,7.814e-05,2]
[423440962,1780125050000,-500.0,7.814e-05,2]
[423440934,1780125050000,-191.55397799,7.47e-05,2]
[423440937,1780125050000,-500.0,7.47e-05,2]
[423440938,1780125050000,-500.0,7.47e-05,2]
[423440936,1780125050000,-956.83876526,7.47e-05,2]
[423440940,1780125050000,-252.21424094,7.47e-05,2]
[423440939,1780125050000,-500.0,7.47e-05,2]
[423440941,1780125050000,-262.67045814,7.47e-05,2]
[423440944,1780125050000,-500.0,7.47e-05,2]
[423440945,1780125050000,-500.0,7.47e-05,2]
[423440946,1780125050000,-164.64997783,7.47e-05,2]
[423440943,1780125050000,-500.0,7.47e-05,2]
[423440942,1780125050000,-500.0,7.47e-05,2]
[423440948,1780125050000,-253.0,7.554e-05,2]
[423440947,1780125050000,-319.95919351,7.471e-05,2]
[423440955,1780125050000,-5357.21566266,7.807e-05,2]
[423440958,1780125050000,-371.53505245,7.814e-05,2]
[423440954,1780125050000,-253.0,7.778e-05,2]
[423440957,1780125050000,-500.0,7.814e-05,2]
[423440956,1780125050000,-174.80621497,7.814e-05,2]
[423440960,1780125050000,-500.0,7.814e-05,2]
[423440953,1780125050000,-3251.0,7.759e-05,2]
[423440949,1780125050000,-232.81,7.611e-05,2]
[423440950,1780125050000,-253.0,7.629e-05,2]
[423440951,1780125050000,-253.0,7.703e-05,2]
[423440952,1780125050000,-17964.0,7.743e-05,2]
[423441025,1780125051000,-245.2,0.00010081,2]
[423441029,1780125051000,-2000.0,0.00010633,2]
[423441026,1780125051000,-245.2,0.00010132,2]
[423441024,1780125051000,-245.2,0.0001003,2]
[423441016,1780125051000,-245.2,9.726e-05,2]
[423441023,1780125051000,-644.83,0.00010027,2]
[423441021,1780125051000,-334.0,9.941e-05,2]
[423441018,1780125051000,-245.2,9.827e-05,2]
[423441019,1780125051000,-245.2,9.878e-05,2]
[423441017,1780125051000,-245.2,9.776e-05,2]
[423441022,1780125051000,-245.2,9.979e-05,2]
[423441027,1780125051000,-644.83,0.00010278,2]
[423441044,1780125051000,-10076.49186078,0.00011419,2]
[423441030,1780125051000,-644.83,0.00010779,2]
[423441034,1780125051000,-10076.4918608,0.00011099,2]
[423441033,1780125051000,-644.83,0.0001103,2]
[423441032,1780125051000,-3479.49,0.00011002,2]
[423441036,1780125051000,-10076.49186078,0.00011099,2]
[423441035,1780125051000,-10076.49186078,0.00011099,2]
[423441038,1780125051000,-200.0,0.0001123,2]
[423441037,1780125051000,-10076.49186078,0.00011099,2]
[423441040,1780125051000,-200.0,0.0001123,2]
[423441039,1780125051000,-200.0,0.0001123,2]
[423441041,1780125051000,-200.0,0.0001123,2]
[423441031,1780125051000,-170.03,0.00010996,2]
[423441015,1780125051000,-245.2,9.675e-05,2]
[423441020,1780125051000,-245.2,9.929e-05,2]
[423441010,1780125051000,-245.2,9.472e-05,2]
[423441042,1780125051000,-310.89679483,0.0001123,2]
[423440989,1780125051000,-420.0,8.217e-05,2]
[423440992,1780125051000,-500.0,8.219e-05,2]
[423440990,1780125051000,-250.0,8.217e-05,2]
[423440991,1780125051000,-500.0,8.219e-05,2]
[423440994,1780125051000,-500.0,8.219e-05,2]
[423440996,1780125051000,-259.0,8.227e-05,2]
[423440995,1780125051000,-500.0,8.219e-05,2]
[423440993,1780125051000,-482.95467167,8.219e-05,2]
[423440997,1780125051000,-500.0,8.493e-05,2]
[423440998,1780125051000,-2000.0,8.506e-05,2]
[423441000,1780125051000,-29831.3,8.637e-05,2]
[423440999,1780125051000,-1000.0,8.521e-05,2]
[423441001,1780125051000,-210.46298578,8.767e-05,2]
[423441002,1780125051000,-170.03,8.797e-05,2]
[423441003,1780125051000,-2351.0,9.037e-05,2]
[423441004,1780125051000,-245.2,9.167e-05,2]
[423441005,1780125051000,-245.2,9.218e-05,2]
[423441006,1780125051000,-245.2,9.268e-05,2]
[423441007,1780125051000,-245.2,9.319e-05,2]
[423441008,1780125051000,-245.2,9.37e-05,2]
[423441009,1780125051000,-245.2,9.421e-05,2]
[423441011,1780125051000,-245.2,9.522e-05,2]
[423441013,1780125051000,-245.2,9.573e-05,2]
[423441012,1780125051000,-2000.0,9.57e-05,2]
[423441014,1780125051000,-245.2,9.624e-05,2]
[423441045,1780125051000,-261.6,0.00011499,2]
[423441028,1780125051000,-644.83,0.00010529,2]
[423441047,1780125051000,-8292.67,0.00011686,2]
[423441075,1780125051000,-150.0,0.00013488,2]
[423441076,1780125051000,-150.0,0.00013488,2]
[423441077,1780125051000,-150.0,0.00013488,2]
[423441078,1780125051000,-150.34164345,0.00013488,2]
[423441079,1780125051000,-150.0,0.00013488,2]
[423441080,1780125051000,-150.0,0.00013488,2]
[423441082,1780125051000,-150.0,0.00013488,2]
[423441083,1780125051000,-150.0,0.00013488,2]
[423441084,1780125051000,-10076.49186078,0.00013508,2]
[423441085,1780125051000,-160.0,0.00013552,2]
[423441086,1780125051000,-215.58360558,0.00013552,2]
[423441088,1780125051000,-172.12,0.00013616,2]
[423441089,1780125051000,-901.28,0.00013635,2]
[423441093,1780125051000,-500.0,0.00013698,2]
[423441087,1780125051000,-2859.89,0.00013608,2]
[423441090,1780125051000,-150.0,0.00013654,2]
[423441091,1780125051000,-150.0,0.00013675,2]
[423441092,1780125051000,-500.0,0.00013698,2]
[423441095,1780125051000,-500.0,0.00013698,2]
[423441094,1780125051000,-500.0,0.00013698,2]
[423441096,1780125051000,-500.0,0.00013698,2]
[423441097,1780125051000,-500.0,0.00013698,2]
[423441098,1780125051000,-500.0,0.00013698,2]
[423441099,1780125051000,-500.0,0.00013698,2]
[423441046,1780125051000,-2198.77,0.00011613,2]
[423441072,1780125051000,-5353.44,0.00013259,2]
[423441074,1780125051000,-223.13192573,0.0001331,2]
[423441081,1780125051000,-150.0,0.00013488,2]
[423441065,1780125051000,-2899.32,0.00013178,2]
[423441043,1780125051000,-10400.25,0.00011397,2]
[423441048,1780125051000,-2000.0,0.00011696,2]
[423441050,1780125051000,-500.62216024,0.00012277,2]
[423441049,1780125051000,-10076.49186078,0.00012116,2]
[423441073,1780125051000,-420.0,0.000133,2]
[423441052,1780125051000,-300.39,0.0001242,2]
[423441053,1780125051000,-200.0,0.00012479,2]
[423441054,1780125051000,-1600.0,0.00012488,2]
[423441055,1780125051000,-2000.0,0.0001276,2]
[423441056,1780125051000,-10076.49186078,0.00012812,2]
[423441057,1780125051000,-7948.8021,0.00013078,2]
[423441060,1780125051000,-2175.27,0.000131,2]
[423441058,1780125051000,-551.81763463,0.00013089,2]
[423441051,1780125051000,-530.54,0.00012329,2]
[423441062,1780125051000,-223.13192572,0.00013137,2]
[423441059,1780125051000,-2583.0,0.000131,2]
[423441067,1780125051000,-277.97,0.000132,2]
[423441066,1780125051000,-170.03,0.00013195,2]
[423441071,1780125051000,-223.13192573,0.00013257,2]
[423441070,1780125051000,-1316.75,0.00013254,2]
[423441068,1780125051000,-1852.42,0.00013206,2]
[423441064,1780125051000,-223.13192573,0.00013138,2]
[423441063,1780125051000,-223.13192573,0.00013138,2]
[423441061,1780125051000,-1290.2133,0.00013106,2]
[423441100,1780125051000,-549.93789521,0.00013698,2]
[423441069,1780125051000,-500.0,0.0001324,2]
[423441117,1780125052000,-500.0,0.00013699,2]
[423441113,1780125052000,-500.0,0.00013699,2]
[423441116,1780125052000,-500.0,0.00013699,2]
[423441114,1780125052000,-500.0,0.00013699,2]
[423441112,1780125052000,-500.0,0.00013699,2]
[423441115,1780125052000,-500.0,0.00013699,2]
[423441111,1780125052000,-500.0,0.00013699,2]
[423441110,1780125052000,-500.0,0.00013699,2]
[423441103,1780125052000,-2500.0,0.00013699,2]
[423441109,1780125052000,-500.0,0.00013699,2]
[423441106,1780125052000,-500.0,0.00013699,2]
[423441107,1780125052000,-500.0,0.00013699,2]
[423441104,1780125052000,-200.0,0.00013699,2]
[423441102,1780125052000,-1045.91,0.00013699,2]
[423441105,1780125052000,-166.66,0.00013699,2]
[423441101,1780125052000,-500.0,0.00013698,2]
[423441118,1780125052000,-500.0,0.00013699,2]
[423441108,1780125052000,-500.0,0.00013699,2]
[423441119,1780125052000,-500.0,0.00013699,2]
[423441131,1780125052000,-150.0,0.00013821,2]
[423441125,1780125052000,-500.0,0.00013699,2]
[423441120,1780125052000,-206.59950841,0.00013699,2]
[423441140,1780125052000,-500.0,0.00013977,2]
[423441139,1780125052000,-171.5958302,0.00013977,2]
[423441137,1780125052000,-150.0,0.00013977,2]
[423441135,1780125052000,-166.66,0.00013973,2]
[423441136,1780125052000,-150.0,0.00013977,2]
[423441133,1780125052000,-150.0,0.00013862,2]
[423441134,1780125052000,-150.0,0.00013916,2]
[423441132,1780125052000,-166.66,0.00013836,2]
[423441138,1780125052000,-150.0,0.00013977,2]
[423441129,1780125052000,-150.0,0.00013737,2]
[423441130,1780125052000,-150.0,0.00013787,2]
[423441127,1780125052000,-500.0,0.00013699,2]
[423441123,1780125052000,-500.0,0.00013699,2]
[423441121,1780125052000,-500.0,0.00013699,2]
[423441128,1780125052000,-150.0,0.00013702,2]
[423441126,1780125052000,-500.0,0.00013699,2]
[423441122,1780125052000,-500.0,0.00013699,2]
[423441124,1780125052000,-500.0,0.00013699,2]
[423441229,1780125053000,-1000.0,0.00014845,2]
[423441231,1780125053000,-3743.12247816,0.0001485,2]
[423441230,1780125053000,-500.0,0.00014849,2]
[423441232,1780125053000,-1000.0,0.00014853,2]
[423441233,1780125053000,-187.46299505,0.00014854,2]
[423441235,1780125053000,-10000.0,0.00014862,2]
[423441234,1780125053000,-16307.89735027,0.00014854,2]
[423441239,1780125053000,-163.0,0.0001488,2]
[423441237,1780125053000,-200.0,0.00014871,2]
[423441243,1780125053000,-501.27,0.00014888,2]
[423441238,1780125053000,-200.0,0.00014879,2]
[423441240,1780125053000,-163.0,0.0001488,2]
[423441242,1780125053000,-513.77,0.00014888,2]
[423441228,1780125053000,-1000.0,0.00014835,2]
[423441236,1780125053000,-1000.0,0.00014871,2]
[423441227,1780125053000,-663.02443329,0.0001483,2]
[423441218,1780125053000,-150.0,0.00014799,2]
[423441225,1780125053000,-150.0,0.0001482,2]
[423441244,1780125053000,-500.0,0.00014888,2]
[423441211,1780125053000,-151.0,0.00014752,2]
[423441214,1780125053000,-1000.0,0.00014757,2]
[423441213,1780125053000,-195.17,0.00014752,2]
[423441215,1780125053000,-16307.89735027,0.00014763,2]
[423441212,1780125053000,-151.0,0.00014752,2]
[423441226,1780125053000,-200.0,0.00014827,2]
[423441217,1780125053000,-500.0,0.0001478,2]
[423441219,1780125053000,-1000.0,0.00014799,2]
[423441222,1780125053000,-5000.0,0.000148,2]
[423441220,1780125053000,-150.0,0.000148,2]
[423441224,1780125053000,-16307.89735027,0.00014809,2]
[423441221,1780125053000,-150.0,0.000148,2]
[423441223,1780125053000,-2008.0,0.000148,2]
[423441216,1780125053000,-150.0,0.00014772,2]
[423441241,1780125053000,-585.0,0.00014888,2]
[423441246,1780125053000,-500.0,0.00014888,2]
[423441248,1780125053000,-500.0,0.00014888,2]
[423441267,1780125053000,-842.75104359,0.000149,2]
[423441266,1780125053000,-1568.71,0.00014899,2]
[423441268,1780125053000,-1250.0007526,0.000149,2]
[423441269,1780125053000,-7162.76763208,0.000149,3]
[423441270,1780125053000,-605.6100191,0.000149,3]
[423441271,1780125053000,-5675.95921788,0.000149,3]
[423441273,1780125053000,-3921.80164084,0.000149,2]
[423441272,1780125053000,-1635.61968777,0.000149,2]
[423441275,1780125053000,-267.6711325,0.000149,2]
[423441277,1780125053000,-1272.80387378,0.000149,2]
[423441276,1780125053000,-250.0,0.000149,2]
[423441278,1780125053000,-1190.69306236,0.000149,2]
[423441281,1780125053000,-485.4185,0.000149,2]
[423441280,1780125053000,-552.0,0.000149,2]
[423441245,1780125053000,-500.0,0.00014888,2]
[423441263,1780125053000,-500.0,0.00014899,2]
[423441264,1780125053000,-500.0,0.00014899,2]
[423441274,1780125053000,-525.79675041,0.000149,2]
[423441262,1780125053000,-500.0,0.00014899,2]
[423441265,1780125053000,-500.0,0.00014899,2]
[423441247,1780125053000,-500.0,0.00014888,2]
[423441250,1780125053000,-500.0,0.00014888,2]
[423441279,1780125053000,-1482.28422149,0.000149,2]
[423441253,1780125053000,-500.0,0.00014899,2]
[423441254,1780125053000,-500.0,0.00014899,2]
[423441257,1780125053000,-501.27,0.00014899,2]
[423441251,1780125053000,-1568.71,0.00014888,2]
[423441249,1780125053000,-500.0,0.00014888,2]
[423441256,1780125053000,-513.77,0.00014899,2]
[423441255,1780125053000,-585.0,0.00014899,2]
[423441258,1780125053000,-500.0,0.00014899,2]
[423441259,1780125053000,-410.30161227,0.00014899,2]
[423441261,1780125053000,-500.0,0.00014899,2]
[423441252,1780125053000,-900.0208053,0.0001489,2]
[423441260,1780125053000,-500.0,0.00014899,2]
[423441296,1780125054000,-151.0,0.000149,2]
[423441298,1780125054000,-151.0,0.000149,2]
[423441297,1780125054000,-151.0,0.000149,2]
[423441302,1780125054000,-151.0,0.000149,2]
[423441295,1780125054000,-151.0,0.000149,2]
[423441301,1780125054000,-151.0,0.000149,2]
[423441294,1780125054000,-151.0,0.000149,2]
[423441300,1780125054000,-151.0,0.000149,2]
[423441299,1780125054000,-151.0,0.000149,2]
[423441285,1780125054000,-452.91970207,0.000149,2]
[423441291,1780125054000,-4211.93231108,0.000149,2]
[423441290,1780125054000,-129677.8556,0.000149,2]
[423441288,1780125054000,-2000.0,0.000149,2]
[423441286,1780125054000,-18395.61697328,0.000149,2]
[423441289,1780125054000,-7789.5016,0.000149,2]
[423441287,1780125054000,-22489.1349,0.000149,2]
[423441283,1780125054000,-1956.2863533,7.47e-05,2]
[423441284,1780125054000,-2801.8083555,0.000149,2]
[423441282,1780125054000,-1539.0,7.47e-05,2]
[423441303,1780125054000,-151.0,0.000149,2]
[423441293,1780125054000,-151.0,0.000149,2]
[423441304,1780125054000,-1044.61246558,0.000149,2]
[423441292,1780125054000,-151.0,0.000149,2]
[423441306,1780125054000,-25000.0,0.000149,3]
[423441305,1780125054000,-16307.89735027,0.000149,2]
[423441328,1780125054000,-151.0,0.00014997,2]
[423441327,1780125054000,-190.72823364,0.0001499,20]
[423441325,1780125054000,-151.0,0.00014987,2]
[423441326,1780125054000,-48321.1250197,0.0001499,2]
[423441324,1780125054000,-150.0,0.00014986,2]
[423441323,1780125054000,-217.54708937,0.00014986,2]
[423441321,1780125054000,-252.77729148,0.00014986,2]
[423441318,1780125054000,-150.0,0.00014986,2]
[423441322,1780125054000,-278.17080659,0.00014986,2]
[423441319,1780125054000,-150.0,0.00014986,2]
[423441320,1780125054000,-150.0,0.00014986,2]
[423441315,1780125054000,-471.62500617,0.00014949,2]
[423441314,1780125054000,-187.46299505,0.00014927,2]
[423441316,1780125054000,-3290.2532237,0.00014957,2]
[423441313,1780125054000,-400.0,0.00014925,2]
[423441311,1780125054000,-220.50209337,0.00014925,2]
[423441307,1780125054000,-10076.49186078,0.000149,2]
[423441312,1780125054000,-400.0,0.00014925,2]
[423441310,1780125054000,-1000.0,0.00014912,2]
[423441309,1780125054000,-400.0,0.000149,2]
[423441308,1780125054000,-1146.5924821,0.000149,2]
[423441317,1780125054000,-169.6454297,0.00014957,2]
[423441367,1780125055000,-585.0,0.00014999,2]
[423441369,1780125055000,-585.0,0.00014999,2]
[423441365,1780125055000,-585.0,0.00014999,2]
[423441366,1780125055000,-513.77,0.00014999,2]
[423441361,1780125055000,-585.0,0.00014999,2]
[423441362,1780125055000,-513.77,0.00014999,2]
[423441363,1780125055000,-513.77,0.00014999,2]
[423441360,1780125055000,-513.77,0.00014999,2]
[423441358,1780125055000,-513.77,0.00014999,2]
[423441368,1780125055000,-513.77,0.00014999,2]
[423441364,1780125055000,-513.77,0.00014999,2]
[423441371,1780125055000,-585.0,0.00014999,2]
[423441383,1780125055000,-585.0,0.00014999,2]
[423441376,1780125055000,-513.77,0.00014999,2]
[423441375,1780125055000,-585.0,0.00014999,2]
[423441374,1780125055000,-513.77,0.00014999,2]
[423441373,1780125055000,-585.0,0.00014999,2]
[423441377,1780125055000,-585.0,0.00014999,2]
[423441381,1780125055000,-585.0,0.00014999,2]
[423441384,1780125055000,-585.0,0.00014999,2]
[423441378,1780125055000,-513.77,0.00014999,2]
[423441379,1780125055000,-585.0,0.00014999,2]
[423441380,1780125055000,-513.77,0.00014999,2]
[423441357,1780125055000,-585.0,0.00014999,2]
[423441382,1780125055000,-513.77,0.00014999,2]
[423441386,1780125055000,-585.0,0.00014999,2]
[423441372,1780125055000,-513.77,0.00014999,2]
[423441355,1780125055000,-585.0,0.00014999,2]
[423441344,1780125055000,-500.0,0.00014999,2]
[423441359,1780125055000,-585.0,0.00014999,2]
[423441385,1780125055000,-513.77,0.00014999,2]
[423441332,1780125055000,-500.0,0.00014999,2]
[423441329,1780125055000,-151.0,0.00014997,2]
[423441331,1780125055000,-500.0,0.00014999,2]
[423441334,1780125055000,-500.0,0.00014999,2]
[423441330,1780125055000,-401.16,0.00014999,2]
[423441333,1780125055000,-500.0,0.00014999,2]
[423441335,1780125055000,-500.0,0.00014999,2]
[423441338,1780125055000,-500.0,0.00014999,2]
[423441337,1780125055000,-500.0,0.00014999,2]
[423441336,1780125055000,-500.0,0.00014999,2]
[423441339,1780125055000,-500.0,0.00014999,2]
[423441354,1780125055000,-585.0,0.00014999,2]
[423441340,1780125055000,-500.0,0.00014999,2]
[423441342,1780125055000,-500.0,0.00014999,2]
[423441345,1780125055000,-500.0,0.00014999,2]
[423441347,1780125055000,-500.0,0.00014999,2]
[423441341,1780125055000,-500.0,0.00014999,2]
[423441346,1780125055000,-500.0,0.00014999,2]
[423441349,1780125055000,-531.96099601,0.00014999,2]
[423441348,1780125055000,-500.0,0.00014999,2]
[423441350,1780125055000,-378.92076892,0.00014999,2]
[423441351,1780125055000,-585.0,0.00014999,2]
[423441353,1780125055000,-585.0,0.00014999,2]
[423441352,1780125055000,-585.0,0.00014999,2]
[423441356,1780125055000,-513.77,0.00014999,2]
[423441343,1780125055000,-500.0,0.00014999,2]
[423441389,1780125055000,-513.77,0.00014999,2]
[423441370,1780125055000,-513.77,0.00014999,2]
[423441387,1780125055000,-513.77,0.00014999,2]
[423441418,1780125055000,-500.0,0.00014999,2]
[423441419,1780125055000,-500.0,0.00014999,2]
[423441422,1780125055000,-500.0,0.00014999,2]
[423441423,1780125055000,-500.0,0.00014999,2]
[423441424,1780125055000,-500.0,0.00014999,2]
[423441425,1780125055000,-500.0,0.00014999,2]
[423441428,1780125055000,-500.0,0.00014999,2]
[423441426,1780125055000,-500.0,0.00014999,2]
[423441431,1780125055000,-500.0,0.00014999,2]
[423441427,1780125055000,-500.0,0.00014999,2]
[423441430,1780125055000,-500.0,0.00014999,2]
[423441429,1780125055000,-500.0,0.00014999,2]
[423441420,1780125055000,-500.0,0.00014999,2]
[423441432,1780125055000,-500.0,0.00014999,2]
[423441434,1780125055000,-500.0,0.00014999,2]
[423441435,1780125055000,-500.0,0.00014999,2]
[423441439,1780125055000,-500.0,0.00014999,2]
[423441442,1780125055000,-500.0,0.00014999,2]
[423441438,1780125055000,-500.0,0.00014999,2]
[423441436,1780125055000,-500.0,0.00014999,2]
[423441441,1780125055000,-500.0,0.00014999,2]
[423441440,1780125055000,-500.0,0.00014999,2]
[423441443,1780125055000,-500.0,0.00014999,2]
[423441446,1780125055000,-500.0,0.00014999,2]
[423441445,1780125055000,-500.0,0.00014999,2]
[423441388,1780125055000,-585.0,0.00014999,2]
[423441433,1780125055000,-500.0,0.00014999,2]
[423441421,1780125055000,-500.0,0.00014999,2]
[423441437,1780125055000,-200.01390042,0.00014999,2]
[423441416,1780125055000,-501.29879675,0.00014999,2]
[423441415,1780125055000,-501.27,0.00014999,2]
[423441390,1780125055000,-585.02,0.00014999,2]
[423441392,1780125055000,-513.77,0.00014999,2]
[423441395,1780125055000,-501.27,0.00014999,2]
[423441396,1780125055000,-501.27,0.00014999,2]
[423441393,1780125055000,-513.77,0.00014999,2]
[423441394,1780125055000,-513.85046541,0.00014999,2]
[423441399,1780125055000,-501.27,0.00014999,2]
[423441397,1780125055000,-501.27,0.00014999,2]
[423441400,1780125055000,-501.27,0.00014999,2]
[423441398,1780125055000,-501.27,0.00014999,2]
[423441401,1780125055000,-501.27,0.00014999,2]
[423441402,1780125055000,-501.27,0.00014999,2]
[423441391,1780125055000,-513.77,0.00014999,2]
[423441404,1780125055000,-501.27,0.00014999,2]
[423441405,1780125055000,-501.27,0.00014999,2]
[423441414,1780125055000,-501.27,0.00014999,2]
[423441413,1780125055000,-501.27,0.00014999,2]
[423441410,1780125055000,-501.27,0.00014999,2]
[423441411,1780125055000,-501.27,0.00014999,2]
[423441412,1780125055000,-501.27,0.00014999,2]
[423441408,1780125055000,-501.27,0.00014999,2]
[423441406,1780125055000,-501.27,0.00014999,2]
[423441409,1780125055000,-501.27,0.00014999,2]
[423441407,1780125055000,-501.27,0.00014999,2]
[423441403,1780125055000,-501.27,0.00014999,2]
[423441417,1780125055000,-500.0,0.00014999,2]
[423441444,1780125055000,-500.0,0.00014999,2]
[423441475,1780125056000,-500.0,0.00014999,2]
[423441477,1780125056000,-500.0,0.00014999,2]
[423441472,1780125056000,-500.0,0.00014999,2]
[423441479,1780125056000,-500.0,0.00014999,2]
[423441474,1780125056000,-445.31384922,0.00014999,2]
[423441478,1780125056000,-638.65220628,0.00014999,2]
[423441480,1780125056000,-500.0,0.00014999,2]
[423441482,1780125056000,-500.0,0.00014999,2]
[423441481,1780125056000,-500.0,0.00014999,2]
[423441470,1780125056000,-500.0,0.00014999,2]
[423441489,1780125056000,-500.0,0.00014999,2]
[423441483,1780125056000,-500.0,0.00014999,2]